bitfinex/quotes_ETHUSD_20250106
["timestamp","ask_amount","ask_price","bid_price","bid_amount"]
[1736160403999,0.03069658,3638.3,3637.5,3.41627365]
[1736160404239,0.7703,3638.4,3637.9,2.74882]
[1736160404406,0.03385056,3638.3,3637.9,2.74882]
[1736160404608,0.03385056,3638.3,3637.9,3.023702]
[1736160404807,0.03385056,3638.3,3638.0,2.74876]
[1736160405509,0.03385056,3638.3,3637.9,0.274882]
[1736160405709,0.03385056,3638.3,3637.9,3.023652]
[1736160406905,0.03385056,3638.3,3638.1,2.74868]
[1736160407106,0.03385056,3638.3,3638.2,3.0509662]
[1736160407311,0.8218,3638.7,3638.5,2.74835]
[1736160407813,0.8218,3638.7,3638.3,2.74851]
[1736160408035,0.03446395,3638.6,3638.3,2.74851]
[1736160408236,0.8218,3638.7,3638.3,2.74851]
[1736160408439,0.03446942,3638.6,3638.3,3.05359662]
[1736160408640,0.8218,3638.7,3638.3,3.05359662]
[1736160408816,0.03446942,3638.6,3638.4,2.74845]
[1736160409016,0.8218,3638.7,3638.4,2.74845]
[1736160409216,0.03446942,3638.6,3638.3,0.30508662]
[1736160409422,0.8218,3638.7,3638.2,2.7486]
[1736160411978,0.8218,3638.7,3638.3,2.74851]
[1736160412265,0.03446942,3638.6,3638.3,2.74851]
[1736160413454,0.8218,3638.7,3638.4,2.7484]
[1736160413659,0.8218,3638.7,3638.5,2.74836]
[1736160413834,2.74756,3639.6,3638.6,0.274836]
[1736160414031,0.83484224,3639.5,3638.7,2.7482]
[1736160414628,0.83484224,3639.5,3638.4,2.65517365]
[1736160414847,0.83484224,3639.5,3638.8,2.74812]
[1736160417462,0.83484224,3639.5,3638.6,2.74829]
[1736160418278,3.48477365,3639.1,3638.1,1.15309735]
[1736160418423,2.74823,3638.7,3638.1,1.15309735]
[1736160418770,0.86478657,3638.6,3638.1,1.15309735]
[1736160419932,0.86478657,3638.6,3637.8,2.74891]
[1736160420266,0.81478657,3638.6,3637.8,2.74891]
[1736160420565,0.81478657,3638.6,3637.9,2.7488]
[1736160420731,0.81478657,3638.6,3638.1,2.74867]
[1736160421361,0.81478657,3638.6,3638.1,2.72012]
[1736160422360,0.81478657,3638.6,3638.0,0.02748511]
[1736160422569,0.81478657,3638.6,3638.2,2.74854]
[1736160423740,0.80601531,3638.6,3638.2,2.74854]
[1736160424747,0.77082874,3638.6,3638.3,2.74851]
[1736160425036,1.26344481,3639.3,3638.4,2.74845]
[1736160425238,0.034823,3639.2,3638.4,2.74845]
[1736160426869,0.8092,3639.1,3638.4,2.74845]
[1736160427432,0.8092,3639.1,3638.2,1.84741304]
[1736160427627,0.7972,3639.0,3638.2,1.33263731]
[1736160427869,0.7653,3638.7,3638.2,1.33263731]
[1736160428287,0.03460321,3638.6,3638.2,1.33263731]
[1736160428673,0.7653,3638.7,3638.2,1.33263731]
[1736160429084,0.03460321,3638.6,3638.2,1.33263731]
[1736160429384,0.03460321,3638.6,3638.0,1.15309735]
[1736160429385,0.03460321,3638.6,3637.9,2.74883]
[1736160429549,0.7653,3638.7,3637.9,2.74883]
[1736160429745,0.03460321,3638.6,3637.9,2.74883]
[1736160430087,0.7653,3638.7,3637.9,2.74883]
[1736160430585,0.03460321,3638.6,3637.9,2.74883]
[1736160431079,0.7675,3638.5,3637.9,2.74883]
[1736160431482,0.03448601,3638.4,3637.9,2.74883]
[1736160431719,0.03448601,3638.4,3637.9,3.35482647]
[1736160432091,0.03448601,3638.4,3638.0,2.74874]
[1736160434098,0.03448601,3638.4,3638.1,2.74864]
[1736160434394,0.7675,3638.8,3638.3,2.74853]
[1736160434550,0.0346618,3638.7,3638.3,2.74853]
[1736160435072,0.7675,3638.8,3638.3,2.74853]
[1736160435278,0.03460321,3638.6,3638.3,2.74853]
[1736160435501,0.03455492,3638.7,3638.4,0.350293]
[1736160435678,0.03454461,3638.5,3638.3,2.74853]
[1736160435864,0.7675,3638.8,3638.3,2.74853]
[1736160436202,0.0346618,3638.7,3638.3,2.74853]
[1736160436366,0.7675,3638.8,3638.3,2.74853]
[1736160436767,0.0346618,3638.7,3638.3,2.74853]
[1736160436963,0.7675,3638.8,3638.3,2.74853]
[1736160437368,0.0346618,3638.7,3638.2,2.74861]
[1736160438284,0.0346618,3638.7,3638.2,3.63066063]
[1736160438686,0.7675,3638.8,3638.2,2.74861]
[1736160439303,0.03342272,3638.7,3638.2,2.74861]
[1736160439472,0.03342272,3638.7,3638.0,4.08272255]
[1736160439870,0.7675,3638.8,3638.0,4.08272255]
[1736160439871,0.8259,3638.8,3638.0,4.08272255]
[1736160440282,0.03348324,3638.7,3638.0,4.08272255]
[1736160440504,0.50907405,3638.7,3638.0,4.08272255]
[1736160440681,0.7834,3638.6,3638.0,4.08272255]
[1736160441083,0.03336605,3638.5,3638.0,4.08272255]
[1736160441277,0.03336605,3638.5,3638.0,1.33397255]
[1736160441487,0.03336605,3638.5,3638.1,2.74863]
[1736160441702,0.03336605,3638.5,3638.2,2.74857]
[1736160443571,0.03336605,3638.5,3638.1,0.7788]
[1736160443790,0.03336605,3638.5,3638.3,2.7485]
[1736160444183,0.03332882,3638.4,3638.3,2.7485]
[1736160444584,0.8102,3638.8,3638.3,2.7485]
[1736160444987,0.8102,3638.8,3638.4,2.74843]
[1736160444988,0.0335046,3638.7,3638.4,2.74843]
[1736160445374,0.03344601,3638.6,3638.4,2.74843]
[1736160445712,0.8102,3638.8,3638.4,2.74843]
[1736160445913,0.03338742,3638.5,3638.4,2.74843]
[1736160446107,0.8102,3638.8,3638.4,2.74843]
[1736160446312,1.92874481,3639.1,3638.6,2.74826]
[1736160446514,0.0335046,3638.7,3638.6,2.74826]
[1736160446828,1.92874481,3639.1,3638.6,2.74826]
[1736160447310,0.03371242,3639.0,3638.6,2.74826]
[1736160448510,0.03371242,3639.0,3638.6,3.19854564]
[1736160449415,0.03371242,3639.0,3638.6,3.98084564]
[1736160449993,0.03371242,3639.0,3638.7,2.74818]
[1736160450186,0.03371242,3639.0,3638.8,2.74814]
[1736160450579,0.03377136,3638.9,3638.8,2.74814]
[1736160450780,0.03377136,3638.9,3638.8,3.27967891]
[1736160450980,1.14844481,3639.3,3638.8,3.27967891]
[1736160451215,1.14844481,3639.3,3638.9,2.74808]
[1736160451424,0.0339649,3639.2,3638.9,2.74808]
[1736160451740,0.0339649,3639.2,3638.8,0.53153891]
[1736160452019,1.97074481,3639.4,3638.8,0.53153891]
[1736160452216,0.03406978,3639.3,3638.8,0.53153891]
[1736160452921,0.03406978,3639.3,3638.7,2.74823]
[1736160453419,0.03406978,3639.3,3638.8,2.74809]
[1736160454459,0.03406978,3639.3,3638.7,1.33466342]
[1736160455021,0.03406978,3639.3,3639.0,2.74796]
[1736160459249,0.03406978,3639.3,3638.7,1.33466342]
[1736160459422,0.03406978,3639.3,3638.7,2.20512767]
[1736160460624,0.03406978,3639.3,3638.9,2.74807]
[1736160461712,0.03406978,3639.3,3639.1,2.74792]
[1736160462227,1.90394481,3639.7,3639.1,2.74792]
[1736160462613,0.03439149,3639.6,3639.1,2.74787]
[1736160463038,0.03439149,3639.6,3639.1,0.629822]
[1736160463235,0.03439149,3639.6,3639.3,2.74777]
[1736160469346,0.03439149,3639.6,3639.1,2.74789]
[1736160469538,0.03439149,3639.6,3638.9,2.74801]
[1736160469862,0.826,3639.5,3638.9,2.74801]
[1736160470067,0.826,3639.5,3639.0,2.74797]
[1736160472048,0.0333154,3639.4,3639.0,2.74797]
[1736160472365,0.826,3639.5,3639.0,2.74797]
[1736160472662,0.0333154,3639.4,3639.0,2.74797]
[1736160472863,0.0333154,3639.4,3638.9,2.74805]
[1736160473058,0.03325683,3639.3,3638.9,2.74805]
[1736160473429,0.826,3639.5,3639.0,2.74799]
[1736160473661,0.826,3639.5,3639.1,2.74791]
[1736160473968,0.0333154,3639.4,3639.1,2.74791]
[1736160474487,0.7722,3640.0,3639.2,0.02747632]
[1736160474663,0.7722,3640.0,3639.6,2.74753]
[1736160474829,0.03232146,3639.9,3639.6,2.74753]
[1736160475150,0.03232146,3639.9,3639.4,2.77515424]
[1736160475732,0.03232146,3639.9,3639.4,2.74768]
[1736160476139,0.03232146,3639.9,3639.0,1.64819485]
[1736160476140,0.8156,3639.8,3639.2,2.74783]
[1736160476513,0.03249058,3639.7,3639.2,2.74783]
[1736160477502,0.03249058,3639.7,3639.1,2.74789]
[1736160478911,0.03249058,3639.7,3638.7,2.0235616]
[1736160479216,0.8109,3639.6,3638.9,2.74807]
[1736160479362,0.84346325,3639.6,3638.9,2.74807]
[1736160480302,0.84346325,3639.6,3639.0,2.748]
[1736160483511,0.84346325,3639.6,3638.7,0.87046425]
[1736160483800,0.8109,3639.6,3639.1,2.74788]
[1736160484326,0.03203802,3639.5,3639.1,2.74788]
[1736160485185,0.03203802,3639.5,3639.0,0.7519]
[1736160485390,0.03203802,3639.5,3639.2,2.74782]
[1736160487316,0.03203802,3639.5,3639.4,2.7477]
[1736160487632,0.8156,3639.9,3639.5,2.74762]
[1736160487933,0.8156,3639.9,3639.3,2.74775]
[1736160488131,0.8156,3639.9,3639.4,2.7477]
[1736160490157,0.8156,3639.9,3639.2,3.097802]
[1736160490301,0.8156,3639.9,3639.2,2.74783]
[1736160490921,0.8156,3639.9,3639.3,2.74776]
[1736160491325,0.8156,3639.9,3639.1,1.33308437]
[1736160491518,0.8156,3639.9,3639.2,2.74784]
[1736160492613,0.8156,3639.9,3639.3,2.74776]
[1736160493930,3.42807365,3639.8,3639.0,1.15309735]
[1736160494224,2.74755,3639.6,3639.0,1.15309735]
[1736160494522,0.7729,3639.3,3639.0,1.15309735]
[1736160495944,0.7729,3639.3,3638.5,2.74838]
[1736160499022,0.7729,3639.3,3638.6,2.74827]
[1736160499762,0.7729,3639.3,3638.6,0.60458517]
[1736160500102,0.03072166,3639.2,3638.6,0.60458517]
[1736160501146,0.03072166,3639.2,3638.6,1.75768252]
[1736160501303,0.03072166,3639.2,3638.8,2.74811]
[1736160501507,0.7729,3639.3,3638.8,2.74811]
[1736160501741,0.03036204,3639.2,3638.8,2.74811]
[1736160504247,0.03036204,3639.2,3638.8,3.27153917]
[1736160504450,0.03036204,3639.2,3638.8,0.52342917]
[1736160504755,0.03036204,3639.2,3638.7,2.74823]
[1736160506011,0.03036204,3639.2,3638.8,2.74812]
[1736160506525,0.03036204,3639.2,3638.9,2.74806]
[1736160507860,0.03036204,3639.2,3638.8,0.8097]
[1736160508066,0.03036204,3639.2,3639.1,2.74793]
[1736160508278,1.90014481,3639.6,3639.1,2.74793]
[1736160508434,0.03025237,3639.2,3639.1,2.74793]
[1736160508637,1.90014481,3639.6,3639.1,2.74793]
[1736160509153,0.03053847,3639.5,3639.1,2.74793]
[1736160509323,0.03053847,3639.5,3639.2,0.32190377]
[1736160511467,0.03053847,3639.5,3639.3,2.74777]
[1736160512132,0.03053847,3639.5,3639.2,0.32190377]
[1736160512340,0.03053847,3639.5,3639.4,2.7477]
[1736160512643,1.91934481,3639.9,3639.4,2.7477]
[1736160512858,0.02969694,3639.5,3639.4,2.7477]
[1736160513061,1.91934481,3639.9,3639.4,2.7477]
[1736160513230,0.02942856,3639.5,3639.4,2.7477]
[1736160513431,1.91934481,3639.9,3639.4,2.7477]
[1736160513642,0.02942856,3639.5,3639.4,2.7477]
[1736160513843,1.91934481,3639.9,3639.4,2.7477]
[1736160514404,2.40818644,3639.8,3639.4,2.7477]
[1736160514523,2.40818644,3639.8,3639.2,2.74784]
[1736160515484,2.40818644,3639.8,3639.3,2.74776]
[1736160515665,0.02960991,3639.8,3639.3,2.74776]
[1736160517572,0.02960991,3639.8,3639.3,0.354536]
[1736160517761,0.02960991,3639.8,3639.5,3.52315]
[1736160518771,0.02960991,3639.8,3639.6,2.74752]
[1736160520199,1.97124481,3640.2,3639.6,2.77499255]
[1736160520376,0.02977143,3639.7,3639.6,2.77499255]
[1736160520537,1.97124481,3640.2,3639.6,3.13803286]
[1736160520748,0.03000566,3640.1,3639.6,2.74752]
[1736160521286,0.03000566,3640.1,3639.5,0.7756]
[1736160522390,0.03000566,3640.1,3639.5,3.5232]
[1736160524390,0.03000566,3640.1,3639.6,2.74754]
[1736160524691,0.03000566,3640.1,3639.4,2.74767]
[1736160526098,0.03000566,3640.1,3639.3,0.354536]
[1736160526304,0.03000566,3640.1,3639.5,2.74759]
[1736160529199,0.8288,3640.0,3639.2,1.98169735]
[1736160529495,0.8288,3640.0,3639.3,2.74777]
[1736160529714,0.03024445,3639.9,3639.2,2.16208126]
[1736160529864,0.8288,3640.0,3639.2,2.16208126]
[1736160530064,0.03024445,3639.9,3639.2,2.16208126]
[1736160530264,0.03024445,3639.9,3639.3,0.6820777]
[1736160530519,0.03024445,3639.9,3639.3,3.4297777]
[1736160531496,0.03024445,3639.9,3639.4,2.74764]
[1736160532264,0.03024445,3639.9,3639.3,0.6820777]
[1736160532481,0.03024445,3639.9,3639.5,2.74762]
[1736160535409,0.03024445,3639.9,3639.3,2.74777]
[1736160536512,0.03024445,3639.9,3639.2,0.8286]
[1736160536513,0.03024445,3639.9,3639.4,2.74769]
[1736160538530,0.03024445,3639.9,3639.8,2.7474]
[1736160538685,0.8288,3640.0,3639.4,1.67386081]
[1736160538884,0.8288,3640.0,3639.2,1.19657437]
[1736160539097,0.8288,3640.0,3639.5,2.74762]
[1736160539303,0.03014958,3639.9,3639.5,2.74762]
[1736160540978,0.03014958,3639.9,3639.0,0.7525]
[1736160540979,0.7505,3639.8,3639.0,0.7525]
[1736160541178,0.7505,3639.8,3639.2,2.74785]
[1736160541697,0.7505,3639.6,3639.2,2.74785]
[1736160542003,0.02999104,3639.5,3639.2,2.74785]
[1736160542911,0.7505,3639.6,3639.2,2.74785]
[1736160543410,0.02999104,3639.5,3639.2,2.74785]
[1736160544493,0.7736,3639.4,3638.9,2.74802]
[1736160544682,0.7736,3639.4,3638.9,0.69445944]
[1736160544884,0.02975534,3639.3,3638.7,1.19657437]
[1736160545790,0.02975534,3639.3,3638.8,2.74808]
[1736160546211,0.02975534,3639.3,3638.8,3.90068812]
[1736160548521,0.02975534,3639.3,3638.8,1.15260812]
[1736160548822,0.02975534,3639.3,3638.9,2.74804]
[1736160549237,0.7664,3639.2,3638.8,1.15260812]
[1736160549588,0.02940323,3639.1,3638.8,1.15260812]
[1736160549821,0.7981,3639.0,3638.8,1.15260812]
[1736160550209,0.02827595,3638.9,3638.8,1.15260812]
[1736160550396,0.7981,3639.0,3638.7,3.90076812]
[1736160550598,0.7981,3639.0,3638.8,2.74815]
[1736160550919,0.7566,3639.5,3638.8,1.89295259]
[1736160551116,0.75329214,3639.5,3638.8,1.89295259]
[1736160551627,0.75329214,3639.5,3639.1,2.7479]
[1736160555607,0.75329214,3639.5,3638.9,4.08212194]
[1736160556939,0.75329214,3639.5,3638.9,2.74801]
[1736160559343,0.75329214,3639.5,3638.8,1.15260812]
[1736160559542,0.797,3639.4,3638.8,1.15260812]
[1736160559836,0.797,3638.9,3638.8,1.15260812]
[1736160560643,0.797,3638.9,3638.4,1.15260812]
[1736160560943,0.8239164,3638.9,3638.4,1.15260812]
[1736160561142,0.8239164,3638.9,3638.4,3.90101812]
[1736160562205,0.8239164,3638.9,3638.5,2.74836]
[1736160563368,0.0239164,3638.9,3638.8,5.90889874]
[1736160563664,1.15067078,3639.4,3639.3,2.74778]
[1736160563803,1.15067078,3639.4,3639.3,3.94435437]
[1736160564028,1.17554762,3639.4,3639.3,3.94435437]
[1736160564248,1.15067078,3639.4,3639.3,2.74778]
[1736160565046,1.15067078,3639.4,3639.3,3.94435437]
[1736160565214,1.15067078,3640.3,3639.6,2.74751]
[1736160565637,0.02445853,3640.2,3639.6,2.74751]
[1736160566339,0.7848,3640.1,3639.7,0.94121891]
[1736160566544,0.02434144,3640.0,3639.7,0.94121891]
[1736160568318,0.02434144,3640.0,3639.6,2.74751]
[1736160571279,0.02434144,3640.0,3639.8,2.74736]
[1736160571677,0.02434144,3640.0,3639.9,2.74732]
[1736160571849,0.02434144,3640.0,3639.9,3.53452]
[1736160572054,1.15067078,3640.6,3639.9,3.53452]
[1736160572360,1.15067078,3640.6,3640.1,2.74711]
[1736160573978,0.761,3640.7,3639.9,0.7872]
[1736160574185,0.7588,3640.9,3640.6,2.74679]
[1736160575070,0.02524807,3640.8,3640.6,2.74679]
[1736160575783,0.7588,3640.9,3640.6,2.74679]
[1736160575989,0.02524807,3640.8,3640.6,2.74679]
[1736160576161,0.7588,3640.9,3640.6,2.74679]
[1736160576361,0.02524807,3640.8,3640.6,2.74679]
[1736160576565,0.7588,3640.9,3640.6,2.74679]
[1736160576767,0.02524807,3640.8,3640.6,2.74679]
[1736160576964,0.7588,3640.9,3640.6,2.74679]
[1736160577164,0.02524807,3640.8,3640.6,2.74679]
[1736160577363,0.7588,3640.9,3640.6,2.74679]
[1736160577570,0.02524807,3640.8,3640.6,2.74679]
[1736160577785,0.7588,3640.9,3640.6,2.74679]
[1736160577987,0.02524807,3640.8,3640.6,2.74679]
[1736160578147,0.7588,3640.9,3640.6,2.74679]
[1736160578351,0.02524807,3640.8,3640.6,2.74679]
[1736160578652,0.7588,3640.9,3640.6,2.74679]
[1736160578991,0.02524807,3640.8,3640.6,2.74679]
[1736160579153,0.7588,3640.9,3640.6,2.74679]
[1736160579489,0.02524807,3640.8,3640.6,2.74679]
[1736160579653,0.02524807,3640.8,3640.6,3.101229]
[1736160579853,0.7683,3641.2,3640.6,3.101229]
[1736160580189,0.02542363,3641.1,3640.6,3.101229]
[1736160584484,0.02542363,3641.1,3640.6,2.74679]
[1736160584898,0.02542363,3641.1,3640.7,2.67874053]
[1736160585101,0.02542363,3641.1,3640.9,3.57697]
[1736160585268,0.784,3641.5,3640.9,3.57697]
[1736160585805,0.02581951,3641.4,3640.9,3.57697]
[1736160587299,0.02581951,3641.4,3641.0,2.74647]
[1736160589566,0.02581951,3641.4,3640.9,0.8304]
[1736160589733,0.02581951,3641.4,3641.0,0.62281443]
[1736160591313,0.02581951,3641.4,3640.6,3.52467]
[1736160591615,0.7716,3641.4,3640.4,0.7779]
[1736160591813,0.7716,3641.2,3640.4,3.52485]
[1736160592026,0.02776396,3641.1,3640.4,3.52485]
[1736160592516,0.7716,3641.2,3640.6,2.74677]
[1736160592813,0.7716,3641.2,3640.7,0.352467]
[1736160592998,0.7716,3641.2,3640.7,3.099147]
[1736160594333,0.7582,3641.5,3640.7,0.352467]
[1736160594532,0.7582,3641.5,3640.7,3.099157]
[1736160595505,0.7582,3641.5,3640.8,2.7466]
[1736160595712,0.7582,3641.5,3640.8,3.5196]
[1736160596317,0.7582,3641.5,3640.8,3.9068067]
[1736160599038,0.7582,3641.5,3640.9,1.19551239]
[1736160601182,0.7582,3641.5,3640.8,0.3872067]
[1736160601314,0.7582,3641.5,3640.7,0.352467]
[1736160601514,0.7582,3641.5,3640.7,1.54797939]
[1736160602155,0.7582,3641.5,3640.7,4.29469939]
[1736160602736,0.7582,3641.5,3640.7,2.74672]
[1736160603258,0.7582,3641.5,3640.5,3.94232239]
[1736160607228,0.7984,3641.4,3640.5,3.94232239]
[1736160608770,0.7984,3641.4,3640.6,2.74677]
[1736160610351,0.7984,3641.4,3640.8,2.74664]
[1736160610558,0.7984,3641.4,3640.8,3.14085524]
[1736160610758,0.7984,3641.4,3640.9,2.74654]
[1736160611158,0.7984,3641.4,3640.8,0.39421524]
[1736160614785,0.7984,3641.4,3640.8,3.14084524]
[1736160614939,0.7984,3641.4,3640.8,0.39421524]
[1736160615140,0.7984,3641.4,3640.9,0.23727276]
[1736160616443,0.7984,3641.4,3640.9,2.98383276]
[1736160617861,0.7984,3641.4,3641.0,2.74649]
[1736160618350,0.7984,3641.4,3640.9,0.23727276]
[1736160619374,0.7984,3641.4,3641.0,2.74648]
[1736160619552,0.7984,3641.4,3641.0,3.42080721]
[1736160620085,0.7984,3641.4,3641.0,4.36284941]
[1736160620286,0.7984,3641.4,3641.0,1.61636941]
[1736160620902,0.7984,3641.4,3641.0,4.36284941]
[1736160621288,0.7984,3641.4,3641.1,0.9420422]
[1736160624096,0.95340431,3641.3,3641.1,0.9420422]
[1736160624297,0.95340431,3641.3,3641.1,2.78653478]
[1736160624498,0.95340431,3641.3,3641.1,2.81399637]
[1736160624805,0.95340431,3641.3,3641.2,2.74634]
[1736160625399,0.8221,3641.7,3641.2,2.74634]
[1736160625400,0.8221,3641.7,3641.3,2.74626]
[1736160625709,0.8221,3641.7,3641.3,3.94177239]
[1736160625910,0.8221,3641.7,3641.4,0.80968017]
[1736160626670,1.15067078,3641.9,3641.4,0.80968017]
[1736160626998,5.04693157,3642.2,3641.4,2.35344103]
[1736160626999,0.8221,3641.8,3641.4,2.35344103]
[1736160628593,0.8221,3641.8,3641.4,0.9420422]
[1736160629913,0.8058,3641.6,3641.2,0.9420422]
[1736160631042,0.753,3641.4,3640.9,3.6886022]
[1736160632219,0.753,3641.4,3640.9,0.9420422]
[1736160632382,0.05601109,3641.3,3640.9,0.9420422]
[1736160632581,0.753,3641.4,3640.9,0.9420422]
[1736160633016,0.753,3641.4,3641.0,0.9420422]
[1736160633315,1.94851239,3641.1,3641.0,0.9420422]
[1736160633820,2.00449374,3641.1,3641.0,0.9420422]
[1736160634621,0.757,3641.0,3640.3,3.89961812]
[1736160634782,0.05579852,3640.9,3640.3,3.89961812]
[1736160635807,0.05579852,3640.9,3640.4,0.92960903]
[1736160636115,0.05579852,3640.9,3640.5,2.74687]
[1736160636418,0.05579852,3640.9,3640.4,0.92960903]
[1736160636983,0.05579852,3640.9,3640.4,1.41139883]
[1736160637183,0.05579852,3640.9,3640.4,4.15833883]
[1736160638224,0.05579852,3640.9,3640.5,0.92968192]
[1736160639227,0.05579852,3640.9,3640.4,4.15833883]
[1736160645826,0.05579852,3640.9,3640.4,2.74694]
[1736160649551,0.7927,3640.8,3640.4,2.74694]
[1736160649771,0.84805642,3640.8,3640.4,2.74694]
[1736160650052,0.84805642,3640.8,3640.2,3.89968812]
[1736160650430,0.84805642,3640.8,3640.2,2.74708]
[1736160651650,0.84805642,3640.8,3640.3,3.67540515]
[1736160652774,0.84805642,3640.8,3640.3,2.74702]
[1736160657866,0.8077,3640.6,3640.2,1.39257773]
[1736160658062,0.05504828,3640.5,3640.2,1.39257773]
[1736160658262,0.8077,3640.4,3640.2,1.39257773]
[1736160658444,0.05493304,3640.3,3640.2,1.39257773]
[1736160658645,0.05493304,3640.3,3639.8,1.15260812]
[1736160658987,0.05493304,3640.3,3639.8,3.89993812]
[1736160659463,0.7839,3640.2,3639.8,1.15260812]
[1736160659671,0.7839,3639.9,3639.8,1.15260812]
[1736160659828,0.83842446,3639.9,3639.8,1.15260812]
[1736160660161,0.7839,3639.9,3639.8,1.15260812]
[1736160660542,0.7839,3639.9,3639.8,0.92821988]
[1736160660742,0.83838172,3639.9,3639.8,0.92821988]
[1736160660948,3.73460941,3639.9,3639.8,0.92821988]
[1736160661471,3.78893479,3639.9,3639.8,0.92821988]
[1736160662049,2.74747,3639.7,3639.6,1.15260812]
[1736160662253,2.74747,3639.7,3635.8,1.32949745]
[1736160662254,0.7911,3639.6,3638.7,1.15260812]
[1736160662451,1.24960719,3639.5,3638.7,4.71681702]
[1736160663491,1.24960719,3639.5,3638.7,3.5642089]
[1736160664538,0.0540948,3639.5,3638.7,0.8159789]
[1736160664880,0.0540948,3639.5,3638.6,1.19551239]
[1736160666081,0.0540948,3639.5,3638.8,2.74812]
[1736160666398,0.0540948,3639.5,3639.0,1.19551239]
[1736160666558,0.0540948,3639.5,3639.4,2.7477]
[1736160666767,0.0540948,3639.5,3639.4,4.33753363]
[1736160666947,0.7504,3639.9,3639.4,3.14202124]
[1736160667369,0.0519434,3639.8,3639.4,3.14202124]
[1736160667671,0.0519434,3639.8,3639.4,2.7477]
[1736160676570,0.0519434,3639.8,3638.9,2.65128544]
[1736160676776,0.0519434,3639.8,3639.7,2.74747]
[1736160676977,0.8057,3640.3,3639.7,2.74747]
[1736160677376,0.0522774,3640.2,3639.7,2.74747]
[1736160677979,0.0522774,3640.2,3639.5,2.74759]
[1736160678174,0.0522774,3640.2,3639.3,0.37563]
[1736160678525,0.8035,3640.0,3639.1,1.15260812]
[1736160678715,3.55078,3640.0,3639.1,3.90052812]
[1736160678935,0.05236496,3639.9,3639.1,3.90052812]
[1736160680112,0.05236496,3639.9,3639.1,2.74792]
[1736160680314,0.05236496,3639.9,3639.2,2.7478]
[1736160680781,0.05236496,3639.9,3639.2,0.36083768]
[1736160682283,0.7622,3639.8,3639.2,0.36083768]
[1736160682678,0.7622,3639.8,3639.3,2.74777]
[1736160682889,0.81443238,3639.8,3639.3,2.74777]
[1736160686158,0.05223238,3639.8,3639.4,2.74766]
[1736160686355,0.05223238,3639.8,3639.5,0.38844977]
[1736160686519,0.7638,3640.1,3639.5,2.74759]
[1736160686700,0.0521569,3639.7,3639.5,2.74759]
[1736160686900,0.7638,3640.1,3639.5,2.74759]
[1736160687283,0.05232981,3640.0,3639.5,2.74759]
[1736160688030,0.05232981,3640.0,3639.3,0.776]
[1736160688441,0.05232981,3640.0,3639.2,2.74782]
[1736160688730,0.7505,3639.9,3639.2,2.74782]
[1736160688955,0.80278645,3639.9,3639.2,2.74782]
[1736160689160,0.80278645,3639.9,3639.3,2.74772]
[1736160689509,0.7505,3639.9,3639.3,2.74772]
[1736160690230,0.05222881,3639.8,3639.3,2.74772]
[1736160690917,0.7505,3639.9,3639.3,2.74772]
[1736160691145,0.05222881,3639.8,3639.3,2.74772]
[1736160691514,0.7505,3639.9,3639.3,2.74772]
[1736160691749,0.05222881,3639.8,3639.3,2.74772]
[1736160692558,0.05222881,3639.8,3639.1,1.38939175]
[1736160692763,0.05222881,3639.8,3639.1,4.13730175]
[1736160693249,0.8108,3639.7,3639.1,4.13730175]
[1736160693813,0.8108,3639.7,3639.1,4.91708396]
[1736160694517,0.8108,3639.7,3639.2,0.92699107]
[1736160695652,0.8108,3639.7,3639.2,2.31638282]
[1736160696037,0.8108,3639.7,3639.2,5.06421282]
[1736160696572,0.8108,3639.7,3639.2,2.31638282]
[1736160696860,0.8108,3639.7,3639.2,0.92699107]
[1736160699974,0.80749241,3639.7,3639.2,0.92699107]
[1736160700132,0.80749241,3639.7,3639.2,3.67483107]
[1736160700978,0.80749241,3639.7,3639.3,0.92699107]
[1736160701661,0.05209569,3639.6,3639.3,0.92699107]
[1736160705449,0.80749241,3639.7,3639.3,3.67475107]
[1736160705645,0.80749241,3639.7,3639.3,4.54752574]
[1736160705977,0.05076236,3639.6,3639.3,4.54752574]
[1736160706276,0.80749241,3639.7,3639.3,4.54752574]
[1736160706575,0.05076236,3639.6,3639.3,4.54752574]
[1736160706971,1.15067078,3640.1,3639.3,4.54752574]
[1736160706972,0.7673,3640.0,3639.4,2.31868416]
[1736160707172,1.15067078,3640.1,3639.9,1.1966776]
[1736160707475,0.05093528,3639.9,3639.8,2.7474]
[1736160707675,1.15067078,3640.1,3639.9,2.74725]
[1736160708243,1.15067078,3640.1,3639.7,2.74741]
[1736160708443,0.7673,3640.3,3640.0,0.92699107]
[1736160709678,0.7673,3640.3,3639.9,0.92699107]
[1736160710176,0.05119025,3640.2,3639.9,0.92699107]
[1736160710478,0.7673,3640.3,3639.9,0.92699107]
[1736160710837,0.05119025,3640.2,3639.9,0.92699107]
[1736160711041,0.7673,3640.3,3639.9,0.92699107]
[1736160711576,0.05119025,3640.2,3639.9,0.92699107]
[1736160711876,0.7673,3640.3,3639.9,0.92699107]
[1736160712081,1.1966776,3640.2,3639.9,0.92699107]
[1736160712376,2.0297776,3640.0,3639.9,0.92699107]
[1736160712675,2.0297776,3640.0,3639.6,1.72891219]
[1736160712676,2.74737,3639.9,3639.6,0.92699107]
[1736160712838,1.1966776,3639.7,3639.6,0.92699107]
[1736160713043,0.88415188,3639.7,3639.6,0.92699107]
[1736160713267,1.51256348,3639.7,3639.6,0.92699107]
[1736160714184,5.04708346,3639.7,3638.9,1.15260812]
[1736160715177,5.04708346,3639.7,3638.9,3.90068812]
[1736160715381,4.41867186,3639.7,3638.9,3.90068812]
[1736160715758,0.95353968,3639.6,3638.9,5.65693383]
[1736160716162,0.05093659,3639.5,3638.9,5.65693383]
[1736160716781,0.05093659,3639.5,3639.0,2.3168388]
[1736160717184,1.78663968,3639.7,3639.0,2.3168388]
[1736160717383,0.05087894,3639.4,3639.0,2.3168388]
[1736160717558,1.78663968,3639.7,3639.0,2.3168388]
[1736160717758,0.05082129,3639.3,3639.0,2.3168388]
[1736160717977,1.78663968,3639.7,3639.0,2.3168388]
[1736160718183,0.05076363,3639.2,3639.0,2.3168388]
[1736160718384,0.8331,3639.7,3639.0,1.39169309]
[1736160718588,1.58566566,3639.7,3639.0,1.39169309]
[1736160718884,0.05099424,3639.6,3639.0,1.39169309]
[1736160719287,0.05099424,3639.6,3639.0,4.13967309]
[1736160719583,0.05099424,3639.6,3639.0,2.74798]